bitfinex/quotes_SOLUSD_20250508
["timestamp","ask_amount","ask_price","bid_price","bid_amount"]
[1746723324142,157.61837722,160.18,160.13,14.975367]
[1746723324650,136.4,160.17,160.13,14.975367]
[1746723326244,136.4,160.17,160.15,14.975367]
[1746723326543,136.4,160.17,160.16,14.975367]
[1746723327549,136.4,160.17,160.16,21.21912324]
[1746723327751,142.64187747,160.21,160.16,21.21912324]
[1746723327954,142.64187747,160.21,160.17,14.975367]
[1746723328449,136.4,160.21,160.17,14.975367]
[1746723328650,15.98,160.24,160.2,14.975367]
[1746723328855,15.98,160.24,160.21,14.975367]
[1746723329059,157.61525267,160.26,160.21,14.975367]
[1746723329734,157.61525267,160.26,160.22,14.975367]
[1746723329735,136.4,160.26,160.22,14.975367]
[1746723330935,136.4,160.26,160.23,14.975367]
[1746723331844,142.63987866,160.26,160.23,14.975367]
[1746723332041,15.98,160.29,160.25,14.975367]
[1746723332244,142.63917938,160.28,160.25,14.975367]
[1746723332758,142.63917938,160.28,160.24,14.975367]
[1746723332949,157.61454638,160.28,160.23,14.975367]
[1746723333145,157.61454638,160.28,160.21,34.2298]
[1746723333458,157.61454638,160.28,160.23,14.975367]
[1746723334263,142.63917938,160.28,160.25,14.975367]
[1746723334561,142.63917938,160.28,160.24,14.975367]
[1746723334751,157.61454638,160.28,160.24,14.975367]
[1746723335150,157.61454638,160.28,160.23,14.975367]
[1746723335355,14.975367,160.25,160.18,26.0]
[1746723335544,14.975367,160.25,160.21,14.975367]
[1746723335857,6.2402496,160.25,160.21,14.975367]
[1746723336358,6.2402496,160.25,160.19,6.24226818]
[1746723336545,21.2156166,160.25,160.21,14.975367]
[1746723336854,21.2156166,160.25,160.18,6.24292503]
[1746723337040,21.2156166,160.25,160.21,14.975367]
[1746723337241,21.2156166,160.25,160.2,14.975367]
[1746723337867,14.975367,160.24,160.2,14.975367]
[1746723338766,6.24102852,160.23,160.17,33.82362704]
[1746723339242,6.24102852,160.23,160.19,14.975367]
[1746723339475,6.24102852,160.23,160.2,14.975367]
[1746723339967,6.24102852,160.23,160.17,33.82362704]
[1746723340145,6.24102852,160.23,160.19,14.975367]
[1746723340343,21.21639552,160.23,160.17,33.82362704]
[1746723340550,21.21639552,160.23,160.18,14.975367]
[1746723340756,6.24102852,160.23,160.19,14.975367]
[1746723340959,21.21639552,160.23,160.19,14.975367]
[1746723341554,6.24102852,160.23,160.19,14.975367]
[1746723342166,6.24102852,160.23,160.2,14.975367]
[1746723342749,6.24102852,160.23,160.17,6.24329778]
[1746723342945,21.21639552,160.23,160.19,14.975367]
[1746723343853,6.24102852,160.23,160.19,14.975367]
[1746723344262,6.24102852,160.23,160.17,6.24329778]
[1746723344470,21.21639552,160.23,160.19,14.975367]
[1746723344865,21.21639552,160.23,160.18,14.975367]
[1746723345072,21.21639552,160.23,160.17,14.975367]
[1746723345073,14.975367,160.22,160.17,14.975367]
[1746723345367,14.975367,160.19,160.14,14.975367]
[1746723345568,155.04964886,160.21,160.12,6.1849]
[1746723345569,6.24336642,160.17,160.13,14.975367]
[1746723346164,6.24336642,160.17,160.12,6.1849]
[1746723346165,21.21873342,160.17,160.12,6.1849]
[1746723346367,21.21873342,160.17,160.13,14.975367]
[1746723347447,6.24336642,160.17,160.13,14.975367]
[1746723348064,21.21873342,160.17,160.13,14.975367]
[1746723348359,14.975367,160.16,160.1,6.24593909]
[1746723348565,14.975367,160.16,160.12,14.975367]
[1746723348771,151.375367,160.16,160.11,14.975367]
[1746723348975,151.375367,160.16,160.09,33.79733917]
[1746723349170,151.375367,160.16,160.09,7.79733917]
[1746723349480,151.375367,160.16,160.12,14.975367]
[1746723349865,6.24414611,160.15,160.12,14.975367]
[1746723351074,6.24414611,160.15,160.1,6.24599059]
[1746723351278,6.24414611,160.15,160.12,14.975367]
[1746723351692,6.24414611,160.15,160.09,7.79737736]
[1746723351994,6.24414611,160.15,160.09,6.24637736]
[1746723352282,6.24414611,160.15,160.11,14.975367]
[1746723352678,6.24414611,160.15,160.09,6.24637736]
[1746723352876,6.24414611,160.15,160.11,14.975367]
[1746723353571,6.24414611,160.15,160.09,6.24637736]
[1746723353772,6.24414611,160.15,160.11,14.975367]
[1746723354279,6.24414611,160.15,160.09,6.24637736]
[1746723354481,14.975367,160.15,160.09,6.24637736]
[1746723354684,14.975367,160.14,160.1,14.975367]
[1746723355584,14.975367,160.12,160.07,40.975367]
[1746723355991,136.4,160.13,160.09,14.975367]
[1746723356374,136.4,160.13,160.11,14.975367]
[1746723357293,136.4,160.13,160.11,21.22104704]
[1746723357469,136.4,160.13,160.12,14.975367]
[1746723358677,136.4,160.13,160.12,21.22068301]
[1746723358880,199.59886478,160.17,160.12,21.22068301]
[1746723359081,136.4,160.16,160.12,21.22068301]
[1746723359282,136.4,160.16,160.13,14.975367]
[1746723359576,136.4,160.16,160.15,14.975367]
[1746723359971,136.4,160.16,160.14,14.975367]
[1746723361085,136.4,160.16,160.14,21.21989615]
[1746723361293,136.4,160.16,160.14,14.975367]
[1746723361471,157.61920952,160.16,160.09,6.5714]
[1746723361669,157.61920952,160.16,160.11,14.975367]
[1746723361872,14.975367,160.14,160.08,6.24687656]
[1746723362082,14.975367,160.14,160.07,6.24713379]
[1746723362373,14.975367,160.14,160.09,14.975367]
[1746723362685,21.21997639,160.14,160.09,14.975367]
[1746723363382,21.21997639,160.14,160.09,21.2217245]
[1746723363674,151.375367,160.15,160.1,14.975367]
[1746723364506,157.6195524,160.15,160.1,14.975367]
[1746723364797,157.6195524,160.15,160.1,21.22109528]
[1746723365171,157.6195524,160.15,160.1,6.24572828]
[1746723365374,157.6195524,160.15,160.1,21.22109528]
[1746723365590,151.375367,160.15,160.1,21.22109528]
[1746723366985,136.4,160.15,160.11,14.975367]
[1746723368289,136.4,160.15,160.11,21.22102983]
[1746723370306,136.4,160.15,160.13,21.22022522]
[1746723370592,136.4,160.15,160.14,14.975367]
[1746723372590,136.4,160.15,160.14,21.21990303]
[1746723374378,136.4,160.15,160.14,14.975367]
[1746723375201,136.4,160.15,160.1,15.61522781]
[1746723375502,151.375367,160.15,160.08,26.0]
[1746723375798,151.375367,160.15,160.1,14.975367]
[1746723376002,157.61961356,160.15,160.1,14.975367]
[1746723376989,157.61961356,160.15,160.09,6.24637495]
[1746723377193,157.61961356,160.15,160.1,14.975367]
[1746723377508,142.64424656,160.15,160.1,14.975367]
[1746723377803,157.61961356,160.15,160.1,14.975367]
[1746723378489,21.22017278,160.14,160.1,14.975367]
[1746723378697,14.975367,160.13,160.07,6.24726682]
[1746723378895,14.975367,160.13,160.08,14.975367]
[1746723379203,14.975367,160.12,160.07,14.975367]
[1746723379404,14.975367,160.11,160.06,14.975367]
[1746723379898,136.4,160.12,160.1,14.975367]
[1746723380110,136.4,160.12,160.11,14.975367]
[1746723381707,136.4,160.12,160.11,21.22107307]
[1746723382084,40.975367,160.17,160.11,21.22107307]
[1746723382085,183.61885002,160.17,160.11,21.22107307]
[1746723382285,151.375367,160.16,160.11,21.22107307]
[1746723382705,157.61926314,160.16,160.07,6.0202]
[1746723382883,14.975367,160.14,160.1,14.975367]
[1746723383513,151.375367,160.15,160.1,14.975367]
[1746723384009,6.24453603,160.14,160.1,14.975367]
[1746723384313,151.375367,160.15,160.1,14.975367]
[1746723384314,136.4,160.15,160.11,14.975367]
[1746723384525,136.4,160.15,160.12,14.975367]
[1746723384687,151.375367,160.15,160.07,6.0202]
[1746723384894,151.375367,160.15,160.1,14.975367]
[1746723385908,157.61959493,160.15,160.1,14.975367]
[1746723386582,157.61959493,160.15,160.07,6.0202]
[1746723386583,14.975367,160.14,160.07,6.2471297]
[1746723386788,14.975367,160.12,160.07,14.975367]
[1746723387716,151.375367,160.11,160.06,14.975367]
[1746723387920,157.62119304,160.11,160.06,14.975367]
[1746723388091,142.64582604,160.11,160.07,14.975367]
[1746723389487,142.64582604,160.11,160.06,6.24763687]
[1746723389687,142.64582604,160.11,160.07,14.975367]
[1746723390705,157.62119304,160.11,160.06,14.975367]
[1746723391319,142.64582604,160.11,160.06,14.975367]
[1746723391617,157.62119304,160.11,160.06,14.975367]
[1746723392114,14.975367,160.1,160.03,6.0877]
[1746723392302,142.64582604,160.11,160.02,7.87277466]
[1746723392303,14.975367,160.09,160.02,7.87277466]
[1746723392614,14.975367,160.09,160.03,14.975367]
[1746723392821,14.975367,160.08,160.03,14.975367]
[1746723392997,14.975367,160.09,160.04,14.975367]
[1746723393515,6.24687656,160.08,160.04,14.975367]
[1746723394423,6.24687656,160.08,160.02,7.87276614]
[1746723394621,6.24687656,160.08,160.04,14.975367]
[1746723394807,21.22224356,160.08,160.02,7.87276614]
[1746723395124,21.22224356,160.08,160.04,14.975367]
[1746723395125,6.24687656,160.08,160.04,14.975367]
[1746723397106,14.975367,160.06,159.99,6.4399]
[1746723397501,14.975367,160.06,160.01,14.975367]
[1746723397502,6.24804748,160.05,160.01,14.975367]
[1746723397701,6.24774153,160.06,160.02,14.975367]
[1746723398116,6.24774153,160.06,160.0,6.24993238]
[1746723398516,6.24774153,160.06,160.02,14.975367]
[1746723399423,6.24774153,160.06,160.03,14.975367]
[1746723400004,136.4,160.07,160.05,14.975367]
[1746723401314,136.4,160.07,160.01,6.24959258]
[1746723401315,136.4,160.07,160.04,14.975367]
[1746723402717,142.6472683,160.07,160.04,14.975367]
[1746723405832,142.6472683,160.07,160.03,14.975367]
[1746723406337,142.6472683,160.07,159.99,56.4399]
[1746723406338,14.975367,160.06,160.02,14.975367]
[1746723406533,14.975367,160.06,159.97,76.0]
[1746723406534,26.0,160.02,159.93,6.25240506]
[1746723406723,14.975367,160.01,159.96,14.975367]
[1746723407754,6.25,160.0,159.96,14.975367]
[1746723407956,6.25,160.0,159.97,14.975367]
[1746723408750,21.225367,160.0,159.92,64.11594555]
[1746723408957,14.975367,159.99,159.94,14.975367]
[1746723409645,6.25078134,159.98,159.94,14.975367]
[1746723412445,21.22591492,159.99,159.94,14.975367]
[1746723412750,40.975367,159.98,159.93,14.975367]
[1746723412933,26.0,159.98,159.94,14.975367]
[1746723413134,21.22591492,159.99,159.94,14.975367]
[1746723413652,136.4,160.01,159.97,14.975367]
[1746723413857,136.4,160.01,159.99,14.975367]
[1746723414233,136.4,160.01,159.98,14.975367]
[1746723416357,136.4,160.01,159.99,14.975367]
[1746723417381,136.4,160.01,159.98,21.22606512]
[1746723417666,136.4,160.01,159.99,14.975367]
[1746723418175,136.4,160.01,159.99,21.22572669]
[1746723418351,152.3,160.07,160.0,14.975367]
[1746723418556,6.24779658,160.06,160.03,14.975367]
[1746723418867,6.74779658,160.06,160.02,14.975367]
[1746723420458,6.74779658,160.06,160.03,14.975367]
[1746723421262,0.5,160.06,160.04,14.975367]
[1746723421668,6.74766563,160.06,160.04,14.975367]
[1746723421956,6.74766563,160.06,160.01,6.2494811]
[1746723422270,6.74766563,160.06,160.04,14.975367]
[1746723422457,0.5,160.06,160.04,14.975367]
[1746723423477,6.74770741,160.06,160.04,14.975367]
[1746723423679,6.74770741,160.06,160.03,14.975367]
[1746723423978,6.74770741,160.06,160.02,14.975367]
[1746723424272,14.975367,160.05,159.98,7.77669645]
[1746723424461,14.975367,160.04,160.0,14.975367]
[1746723424775,14.975367,160.05,160.0,14.975367]
[1746723425070,14.975367,160.04,159.98,1.526]
[1746723425280,14.975367,160.03,159.96,12.59669942]
[1746723425467,14.975367,160.04,159.99,14.975367]
[1746723425861,14.975367,160.05,160.0,14.975367]
[1746723426069,21.22380489,160.04,159.99,14.975367]
[1746723426576,21.22380489,160.04,159.97,6.25107697]
[1746723426772,21.22380489,160.04,159.99,14.975367]
[1746723426970,22.52380489,160.04,159.99,14.975367]
[1746723427171,21.22380489,160.04,159.99,14.975367]
[1746723427371,21.22380489,160.04,159.97,6.25107697]
[1746723427570,21.22380489,160.04,159.99,14.975367]
[1746723428477,6.24843789,160.04,160.0,14.975367]
[1746723428870,21.22380489,160.04,159.99,14.975367]
[1746723429180,14.975367,160.03,159.98,14.975367]
[1746723429373,6.24843789,160.04,159.96,38.59671034]
[1746723429374,14.975367,160.02,159.96,38.59671034]
[1746723429562,6.24960939,160.01,159.98,14.975367]
[1746723429772,6.24960939,160.01,159.96,38.59671034]
[1746723430080,6.24960939,160.01,159.97,14.975367]
[1746723430281,6.24882834,160.03,160.0,14.975367]
[1746723430478,6.24882834,160.03,159.99,14.975367]
[1746723431167,6.24882834,160.03,160.0,14.975367]
[1746723431361,6.24882834,160.03,159.99,14.975367]
[1746723431558,21.22419534,160.03,159.98,14.975367]
[1746723431764,6.24882834,160.03,159.99,14.975367]
[1746723431976,157.62393392,160.04,159.99,14.975367]
[1746723432985,14.975367,160.03,159.99,14.975367]
[1746723433186,14.975367,160.03,159.99,21.22565209]
[1746723434163,21.22421683,160.03,159.99,14.975367]
[1746723436088,157.62396791,160.04,160.0,14.975367]
[1746723436283,136.4,160.04,160.0,14.975367]
[1746723436964,142.64853091,160.04,160.0,14.975367]
[1746723437300,157.62389791,160.04,159.99,21.22565965]
[1746723437485,157.62389791,160.04,159.97,6.25117209]
[1746723437686,157.62389791,160.04,159.99,14.975367]
[1746723437897,14.975367,160.03,159.98,14.975367]
[1746723438991,6.24921884,160.02,159.98,14.975367]
[1746723441498,6.24882834,160.03,159.98,14.975367]
[1746723441879,21.22419534,160.03,159.98,14.975367]
[1746723442092,6.24882834,160.03,159.98,14.975367]
[1746723442301,21.22419534,160.03,159.98,14.975367]
[1746723443601,21.22419534,160.03,159.97,6.25094909]
[1746723443906,14.975367,160.02,159.97,14.975367]
[1746723444317,6.24882834,160.03,159.97,14.975367]
[1746723444712,14.975367,160.02,159.97,14.975367]
[1746723445408,21.22494976,160.02,159.97,14.975367]
[1746723445609,21.22494976,160.02,159.98,14.975367]
[1746723446809,6.24958276,160.02,159.98,14.975367]
[1746723448806,21.22494976,160.02,159.97,14.975367]
[1746723452523,14.975367,160.01,159.95,6.25195373]
[1746723452696,14.975367,160.0,159.95,6.25195373]
[1746723452897,14.975367,160.0,159.95,21.22732073]
[1746723453198,14.975367,160.01,159.96,14.975367]
[1746723453403,14.975367,160.01,159.95,6.25195373]
[1746723453605,6.25,160.0,159.96,14.975367]
[1746723454322,21.225367,160.0,159.95,14.975367]
[1746723454722,14.975367,159.99,159.94,14.975367]
[1746723454899,21.225367,160.0,159.95,14.975367]
[1746723455100,21.225367,160.0,159.93,32.25260369]
[1746723455306,14.975367,159.99,159.94,14.975367]
[1746723455511,6.25078134,159.98,159.92,6.498]
[1746723455714,6.25078134,159.98,159.93,14.975367]
[1746723455715,14.975367,159.97,159.93,14.975367]
[1746723456509,14.975367,159.97,159.91,32.25325472]
[1746723456724,14.975367,159.97,159.92,14.975367]
[1746723457107,21.22686324,159.97,159.92,14.975367]
[1746723457714,14.975367,159.96,159.89,26.0]
[1746723457920,14.975367,159.96,159.91,14.975367]
[1746723458428,142.65087161,159.98,159.94,14.975367]
[1746723459304,157.62623861,159.98,159.92,6.25277508]
[1746723459734,157.62623861,159.98,159.93,14.975367]
[1746723460620,14.975367,159.97,159.93,14.975367]
[1746723462204,14.975367,159.96,159.91,14.975367]
[1746723462405,6.25184596,159.96,159.92,14.975367]
[1746723466532,17.93751536,159.97,159.93,14.975367]
[1746723466726,32.91288236,159.97,159.92,14.975367]
[1746723468838,14.975367,159.95,159.88,12.81963618]
[1746723469018,14.975367,159.95,159.9,14.975367]
[1746723469835,6.25234462,159.94,159.9,14.975367]
[1746723470855,21.22771162,159.94,159.88,12.81970929]
[1746723471011,14.975367,159.92,159.87,26.0]
[1746723471344,14.975367,159.92,159.87,40.975367]
[1746723471840,21.22866665,159.92,159.88,14.975367]
[1746723473040,6.25329965,159.92,159.88,14.975367]
[1746723473239,136.4,159.93,159.9,14.975367]
[1746723473752,136.4,159.93,159.92,14.975367]
[1746723473919,154.33751565,159.97,159.92,21.2282715]
[1746723474118,154.33751565,159.97,159.93,14.975367]
[1746723474737,148.08622171,159.97,159.93,14.975367]
[1746723475038,148.08622171,159.97,159.92,21.2282715]
[1746723475238,148.08622171,159.97,159.96,14.975367]
[1746723475449,148.08622171,159.97,159.95,14.975367]
[1746723475626,148.08622171,159.97,159.94,14.975367]
[1746723479851,148.08622171,159.97,159.93,6.25244521]
[1746723480236,148.08622171,159.97,159.94,14.975367]
[1746723481428,148.08622171,159.97,159.93,6.25244521]
[1746723481628,148.08622171,159.97,159.94,14.975367]
[1746723482148,148.08622171,159.97,159.95,14.975367]
[1746723482858,148.08622171,159.97,159.94,14.975367]
[1746723483540,148.08622171,159.97,159.95,14.975367]
[1746723484133,148.08622171,159.97,159.94,14.975367]
[1746723485458,154.33743173,159.97,159.92,7.80078829]
[1746723485755,154.33743173,159.97,159.93,14.975367]
[1746723487369,154.33743173,159.97,159.94,14.975367]
[1746723489169,169.31279873,159.97,159.89,56.42516157]
[1746723489371,14.975367,159.96,159.9,6.25354797]
[1746723489694,169.31279873,159.97,159.92,14.975367]
[1746723489894,154.33743173,159.97,159.93,14.975367]
[1746723490194,154.33743173,159.97,159.9,6.25354797]
[1746723490369,154.33743173,159.97,159.93,14.975367]
[1746723490568,154.33743173,159.97,159.94,14.975367]
[1746723490968,148.08622171,159.97,159.94,14.975367]
[1746723491876,148.08622171,159.97,159.93,14.975367]
[1746723492686,154.3374369,159.97,159.93,14.975367]
[1746723493592,154.3374369,159.97,159.92,6.25300652]
[1746723493794,154.3374369,159.97,159.93,14.975367]
[1746723494476,148.08622171,159.97,159.93,21.22806469]
[1746723495269,148.08622171,159.97,159.95,14.975367]
[1746723495493,148.08622171,159.97,159.96,14.975367]
[1746723496377,136.4,159.97,159.96,14.975367]
[1746723496565,6.24921884,160.02,159.95,14.975367]
[1746723496771,157.62458584,160.02,159.97,14.975367]
[1746723497894,142.64921884,160.02,159.97,14.975367]
[1746723498191,157.62458584,160.02,159.97,14.975367]
[1746723499292,14.975367,159.99,159.93,6.2525026]
[1746723499499,14.975367,159.99,159.94,14.975367]
[1746723499678,14.975367,160.0,159.95,14.975367]
[1746723499877,6.25039064,159.99,159.95,14.975367]
[1746723500499,6.25039064,159.99,159.94,6.25224844]
[1746723500680,6.25039064,159.99,159.95,14.975367]
[1746723504391,6.25039064,159.99,159.93,14.975367]
[1746723504392,157.62575764,159.99,159.93,14.975367]
[1746723504595,14.975367,159.98,159.92,14.975367]
[1746723504799,142.65039064,159.99,159.91,26.0]
[1746723504800,14.975367,159.97,159.91,26.0]
[1746723504988,14.975367,159.97,159.92,14.975367]
[1746723505190,14.975367,159.97,159.91,40.975367]
[1746723505703,6.25156289,159.96,159.92,14.975367]
[1746723506196,6.25156289,159.96,159.89,56.283]
[1746723506401,21.22692989,159.96,159.91,14.975367]
[1746723508481,21.22692989,159.96,159.91,21.2287715]
[1746723509405,6.25156289,159.96,159.91,21.2287715]
[1746723509590,21.22692989,159.96,159.91,21.2287715]
[1746723509895,25.02820034,159.96,159.91,18.77663745]
[1746723510692,25.02820034,159.96,159.92,18.77663745]
[1746723511794,25.02820034,159.96,159.91,6.25337551]
[1746723511795,25.02820034,159.96,159.91,25.03001296]
[1746723512306,6.25156289,159.96,159.91,25.03001296]
[1746723512487,6.25156289,159.96,159.92,18.77663745]
[1746723512685,155.17663745,159.97,159.9,6.25390869]
[1746723512686,142.65131356,159.97,159.93,18.77663745]
[1746723514202,136.4,159.97,159.95,18.77663745]
[1746723515012,136.4,159.97,159.94,18.77663745]
[1746723516601,136.4,159.97,159.96,18.77663745]
[1746723516795,136.4,159.97,159.95,18.77663745]
[1746723517892,136.4,159.97,159.96,18.77663745]
[1746723519323,22.04896708,160.03,159.96,18.77663745]
[1746723519522,22.04896708,160.03,160.0,18.77663745]
[1746723520299,22.04896708,160.03,159.99,18.77663745]
[1746723520799,22.04896708,160.03,160.0,18.77663745]
[1746723522020,22.04896708,160.03,159.96,6.25156289]
[1746723522212,22.04896708,160.03,159.99,18.77663745]
[1746723523448,22.04896708,160.03,159.97,6.25099502]
[1746723523626,40.82560453,160.03,159.97,6.25099502]
[1746723523928,18.77663745,160.02,159.95,6.1137]
[1746723524112,18.77663745,160.02,159.97,18.77663745]
[1746723524505,22.04896708,160.03,159.95,6.1137]
[1746723524506,18.77663745,160.01,159.95,12.36550977]
[1746723524807,22.04896708,160.03,159.97,18.77663745]
[1746723524808,18.77663745,160.02,159.97,18.77663745]
[1746723525731,6.24960939,160.01,159.97,18.77663745]
[1746723527328,6.24960939,160.01,159.96,18.77663745]
[1746723527329,25.02624684,160.01,159.96,18.77663745]
[1746723527730,6.24960939,160.01,159.97,18.77663745]
[1746723529119,6.24960939,160.01,159.94,6.25223529]
[1746723529120,25.02624684,160.01,159.94,6.25223529]
[1746723529324,25.02624684,160.01,159.96,18.77663745]
[1746723530643,6.24960939,160.01,159.96,18.77663745]
[1746723530831,6.24960939,160.01,159.97,18.77663745]
[1746723531335,6.24960939,160.01,159.95,6.25186992]
[1746723531726,6.24960939,160.01,159.97,18.77663745]
[1746723531946,6.24960939,160.01,159.98,18.77663745]
[1746723532332,6.24960939,160.01,159.97,18.77663745]
[1746723532534,6.24960939,160.01,159.94,6.25234462]
[1746723532736,6.24960939,160.01,159.97,18.77663745]
[1746723533048,6.24960939,160.01,159.97,18.76161608]
[1746723534019,25.01122547,160.01,159.96,25.01308678]
[1746723534223,25.01122547,160.01,159.96,18.76161608]
[1746723534425,18.76161608,160.0,159.95,18.76161608]
[1746723534632,18.76161608,159.96,159.9,6.25365454]
[1746723534839,18.76161608,159.95,159.9,25.01527062]
[1746723535050,18.76161608,159.96,159.91,18.76161608]
[1746723535456,6.25195373,159.95,159.91,18.76161608]
[1746723536762,6.25195373,159.95,159.91,18.7757979]
[1746723539938,25.02775163,159.95,159.89,26.0]
[1746723540233,6.25195373,159.95,159.91,18.7757979]
[1746723540563,6.25195373,159.95,159.92,18.7757979]
[1746723541464,17.4466717,159.97,159.94,18.7757979]
[1746723541640,17.4466717,159.97,159.95,18.7757979]
[1746723542151,17.4466717,159.97,159.94,18.7757979]
[1746723542454,11.19533163,159.97,159.95,18.7757979]
[1746723543260,17.44653462,159.97,159.95,18.7757979]
[1746723543654,11.19533163,159.97,159.95,18.7757979]
[1746723546063,17.44651214,159.97,159.95,18.7757979]
[1746723546260,17.44651214,159.97,159.94,18.7757979]
[1746723546462,17.44651214,159.97,159.92,6.2529727]
[1746723546668,11.19533163,159.97,159.94,18.7757979]
[1746723547967,11.19533163,159.97,159.94,18.76970729]
[1746723548664,17.44662293,159.97,159.94,18.76970729]
[1746723549464,11.19533163,159.97,159.94,18.76970729]
[1746723549784,17.44656441,159.97,159.94,18.76970729]
[1746723550189,11.19533163,159.97,159.94,18.76970729]
[1746723555391,11.19533163,159.97,159.95,18.76970729]
[1746723555588,11.19533163,159.97,159.91,94.79181043]
[1746723555589,136.4,159.99,159.96,18.76970729]
[1746723555768,136.4,159.99,159.97,18.76970729]
[1746723556387,136.4,159.99,159.93,51.538]
[1746723556388,10.87813335,160.02,159.98,18.76970729]
[1746723556569,10.87813335,160.02,159.99,18.76970729]
[1746723557268,17.12741594,160.02,159.99,18.76970729]
[1746723557877,10.87813335,160.02,160.0,18.76970729]
[1746723558081,10.87813335,160.02,160.01,18.76970729]
[1746723558870,10.87813335,160.02,159.98,6.25049747]
[1746723559072,10.87813335,160.02,160.0,18.76970729]
[1746723560797,10.87813335,160.02,160.01,18.76970729]
[1746723562997,10.87813335,160.02,160.01,25.01931668]
[1746723563393,10.87813335,160.02,160.01,18.76970729]
[1746723564601,10.87813335,160.02,160.0,6.24988051]
[1746723564817,10.87813335,160.02,160.01,18.76970729]
[1746723566736,10.87813335,160.02,160.0,6.24988051]
[1746723567026,10.87813335,160.02,160.01,18.76970729]
[1746723567924,10.87813335,160.02,160.01,25.01931668]
[1746723568616,10.87813335,160.02,159.98,6.25078134]
[1746723568819,10.87813335,160.02,160.01,18.76970729]
[1746723570444,10.87813335,160.02,160.01,25.01931668]
[1746723570612,10.87813335,160.02,160.0,18.76970729]
[1746723570930,10.87813335,160.02,160.0,18.75664638]
[1746723572331,10.87813335,160.02,160.0,18.75528112]
[1746723572642,10.87813335,160.02,160.01,18.75528112]
[1746723574437,10.87813335,160.02,160.01,25.00489051]
[1746723574637,10.87813335,160.02,160.01,18.75528112]
[1746723575047,10.87813335,160.02,160.01,25.00489051]
[1746723577042,10.87813335,160.02,160.01,25.00152534]
[1746723577846,6.24743703,160.07,160.01,25.00152534]
[1746723578053,6.24743703,160.07,160.04,18.74641546]
[1746723579648,153.45672754,160.08,160.04,18.74641546]
[1746723579850,153.45672754,160.08,159.99,51.6084]
[1746723579851,18.74641546,160.06,159.99,50.0]
[1746723580152,18.74641546,160.06,160.01,18.74641546]
[1746723581043,169.07391894,160.08,160.01,18.74641546]
[1746723581237,18.74641546,160.06,160.01,18.74641546]
[1746723582459,18.74641546,160.06,160.01,24.99600478]
[1746723582933,24.99427775,160.06,160.01,24.99597642]
[1746723583139,6.24786229,160.06,160.02,18.74641546]
[1746723583335,24.99372757,160.07,160.02,18.74641546]
[1746723584037,147.20973848,160.08,160.04,18.74641546]
[1746723584252,147.20973848,160.08,160.05,18.74641546]
[1746723584856,147.20973848,160.08,160.06,18.74641546]
[1746723587043,147.20973848,160.08,160.06,24.99400539]
[1746723587243,147.20973848,160.08,160.07,18.74641546]
[1746723587774,152.12,160.14,160.07,18.74641546]
[1746723587941,152.12,160.14,160.06,32.24758993]
[1746723587942,152.12,160.14,160.1,18.74641546]
[1746723588142,170.86641546,160.14,160.09,18.74641546]
[1746723588954,177.1110522,160.14,160.09,18.74641546]
[1746723590065,177.1110522,160.14,160.07,6.24701192]
[1746723590364,177.1110522,160.14,160.09,18.74641546]
[1746723591455,24.99171143,160.13,160.09,18.74641546]
[1746723592065,6.24529597,160.13,160.09,18.74641546]
[1746723592571,6.24529597,160.13,160.1,18.74641546]
[1746723593680,18.74641546,160.12,160.05,50.0]
[1746723593873,6.24529597,160.13,160.05,50.0]
[1746723593874,18.74641546,160.11,160.05,50.0]
[1746723594173,18.74641546,160.11,160.07,18.74641546]
[1746723594552,18.74641546,160.12,160.07,18.74641546]
[1746723594748,6.24570607,160.11,160.07,18.74641546]
[1746723595380,6.24570607,160.11,160.08,18.74641546]
[1746723598456,6.24492599,160.13,160.08,18.74641546]
[1746723598778,18.74641546,160.12,160.08,18.74641546]
[1746723599168,20.04641546,160.12,160.08,18.74641546]
[1746723599482,18.74641546,160.12,160.07,18.74641546]
[1746723599868,18.74641546,160.12,160.08,18.74641546]
[1746723600366,6.24570607,160.11,160.05,56.24780811]
[1746723600563,6.24570607,160.11,160.07,18.74641546]
[1746723600763,24.99189913,160.12,160.08,18.74641546]
[1746723601681,18.74641546,160.09,160.05,50.0]
[1746723601980,136.4,160.11,160.03,12.78432978]
[1746723602163,136.4,160.11,160.07,18.74641546]